fUSD/lending_fUSD_20241102
["ID","MTS","AMOUNT","RATE_DAILY","PERIOD"]
[341183192,1730561122198,-150.0,0.00016,2]
[341183193,1730561122897,-150.0,0.00016,2]
[341183194,1730561123064,685.43,0.0001599,3]
[341183195,1730561123298,-150.0,0.00016,2]
[341183196,1730561125000,-150.0,0.00016,2]
[341183197,1730561125460,-150.0,0.00016,2]
[341183198,1730561126113,-150.0,0.00016,2]
[341183199,1730561126597,-150.0,0.00016,2]
[341183200,1730561127396,-150.0,0.00016,2]
[341183201,1730561127839,-150.0,0.00016,2]
[341183202,1730561128833,-150.0,0.00016,2]
[341183203,1730561129540,-150.0,0.00016,2]
[341183204,1730561130129,-150.0,0.00016,2]
[341183205,1730561130161,162.58143027,0.000101,2]
[341183206,1730561130187,162.58143027,0.000101,2]
[341183207,1730561130211,162.58143027,0.000101,2]
[341183208,1730561130236,162.58143027,0.000101,2]
[341183209,1730561130260,162.58143027,0.000101,2]
[341183210,1730561130284,162.58143027,0.000101,2]
[341183211,1730561130307,162.58143027,0.000101,2]
[341183212,1730561130333,162.58143027,0.000101,2]
[341183213,1730561130357,162.58143027,0.000101,2]
[341183214,1730561130381,162.58143027,0.000101,2]
[341183215,1730561130405,162.58143027,0.000101,2]
[341183216,1730561130430,162.58143027,0.000101,2]
[341183217,1730561130454,162.58143027,0.000101,2]
[341183218,1730561130479,162.58143027,0.000101,2]
[341183219,1730561130503,162.58143027,0.000101,2]
[341183220,1730561130529,54919.63269898,0.000101,2]
[341183221,1730561135400,150.21787097,0.0001,2]
[341183222,1730561137215,150.0,9e-05,2]
[341183223,1730561203292,4310.61045842,0.00012666,2]
[341183224,1730561241103,-286.4616162,0.00015999,2]
[341183225,1730561241126,-87511.79445847,0.00016,2]
[341183226,1730561243146,-24397.38233663,0.00016,2]
[341183227,1730561244509,500.0,0.000153,5]
[341183228,1730561246634,1000.0,0.000154,5]
[341183229,1730561248785,1500.0,0.000155,5]
[341183230,1730561250901,2000.0,0.000156,5]
[341183231,1730561253044,2600.0,0.000157,5]
[341183232,1730561255165,500.0,0.000158,5]
[341183233,1730561257285,500.0,0.000159,5]
[341183234,1730561277963,-3735.0,0.00015525,2]
[341183235,1730561277986,-580.69174082,0.00015973,2]
[341183236,1730561278009,-55486.30825918,0.00016,2]
[341183237,1730561283628,7284.7016727,0.0001,2]
[341183238,1730561286822,150.0,0.00015,2]
[341183239,1730561286843,150.0,0.00015,2]
[341183240,1730561286863,150.0,0.00015,2]
[341183241,1730561286884,150.0,0.00015,2]
[341183242,1730561286907,150.0,0.00015,2]
[341183243,1730561286927,150.0,0.00015,2]
[341183244,1730561286948,2898485.0551699,0.00015,2]
[341183245,1730561286974,300000.0,0.00015,2]
[341183246,1730561286994,3629798.91977935,0.00015,2]
[341183247,1730561294070,2174.52005367,0.00013,4]
[341183248,1730561305116,150.0,0.000135,2]
[341183249,1730561305140,150.0,0.000135,2]
[341183250,1730561305160,150.0,0.000135,2]
[341183251,1730561305180,150.0,0.000135,2]
[341183252,1730561305199,150.0,0.000135,2]
[341183253,1730561305220,150.0,0.000135,2]
[341183254,1730561305239,100.0,0.000135,2]
[341183258,1730561316754,150.0,0.000129,2]
[341183259,1730561316775,150.0,0.000129,2]
[341183260,1730561316794,150.0,0.000129,2]
[341183261,1730561316814,14407.32472116,0.000129,2]
[341183262,1730561326149,150.0,0.0001,2]
[341183263,1730561326171,150.0,0.0001,2]
[341183264,1730561326193,150.0,0.0001,2]
[341183265,1730561326215,150.0,0.0001,2]
[341183266,1730561326236,150.0,0.0001,2]
[341183267,1730561326257,150.0,0.0001,2]
[341183268,1730561326277,150.0,0.0001,2]
[341183269,1730561326298,150.0,0.0001,2]
[341183270,1730561326322,150.0,0.0001,2]
[341183271,1730561326342,150.0,0.0001,2]
[341183272,1730561326362,146.29997753,0.0001,2]
[341183273,1730561326668,3.70002247,0.00015,2]
[341183274,1730561326688,150.0,0.00015,2]
[341183275,1730561326708,146.29997753,0.00015,2]
[341183276,1730561328990,150.0,0.00013,2]
[341183277,1730561329011,150.0,0.00013,2]
[341183278,1730561329031,150.0,0.00013,2]
[341183279,1730561329051,62.2871037,0.00013,2]
[341183280,1730561330154,2151.4378436,0.0001421,7]
[341183281,1730561330384,-295.21225809,0.000151,2]
[341183287,1730561355110,-1140.04,0.00015892,2]
[341183288,1730561355131,-500.0,0.00015973,2]
[341183289,1730561355154,-123100.5046,0.00016,2]
[341183290,1730561356099,-2939.473152,0.00016,2]
[341183305,1730561432240,-810.28605147,0.00015938,2]
[341183306,1730561432251,-157.24,0.0001599,2]
[341183307,1730561432260,-157.24,0.0001599,2]
[341183308,1730561432269,-157.24,0.0001599,2]
[341183309,1730561432278,-536.70255974,0.0001599,2]
[341183310,1730561432287,-536.70255974,0.0001599,2]
[341183311,1730561432296,-536.70255974,0.0001599,2]
[341183312,1730561432306,-126338.33773196,0.00016,2]
[341183313,1730561432327,-48365.28516835,0.00016,2]
[341183314,1730561432449,-8295.83086702,0.00016,2]
[341183372,1730561438278,-5283.703325,0.00016,2]
[341183373,1730561438507,-85140.89812091,0.00016,2]
[341183374,1730561438520,-12004.23629,0.00016,2]
[341183375,1730561438531,-631.264,0.00016,2]
[341183378,1730561440334,-12952.36470765,0.00016,2]
[341183379,1730561440347,-35434.06402232,0.00016,2]
[341183380,1730561440358,-5812.0096962,0.00016,2]
[341183381,1730561440369,-7448.73383044,0.00016,2]
[341183382,1730561440381,-7838.71676659,0.00016,2]
[341183383,1730561440395,-25884.38003566,0.00016,2]
[341183384,1730561440416,-1414.12,0.00016,2]
[341183385,1730561440453,-5265.99999998,0.00016,2]
[341183386,1730561440489,-57048.24348701,0.00016,2]
[341183387,1730561440526,-373.03,0.00016,2]
[341183393,1730561441049,-749.08540583,0.00016,2]
[341183395,1730561443301,-162.51112028,0.00015938,2]
[341183396,1730561443310,-344728.0741793,0.00016,2]
[341183397,1730561443322,-423094.4971536,0.00016,2]
[341183398,1730561443333,-22154.13129738,0.00016,2]
[341183399,1730561443344,-2233.42033332,0.00016,2]
[341183400,1730561443355,-11257.72914975,0.00016,2]
[341183401,1730561443407,-2171.90804898,0.00016,2]
[341183404,1730561446213,-2235.69121923,0.00015938,2]
[341183405,1730561446224,-4841.00878077,0.00016,2]
[341183406,1730561446415,-13585.49962182,0.00016,2]
[341183420,1730561463092,600.0,0.000153,5]
[341183421,1730561465284,1200.0,0.000154,5]
[341183422,1730561467436,1800.0,0.000155,5]
[341183423,1730561469563,2400.0,0.000156,5]
[341183424,1730561471717,3000.0,0.000157,5]
[341183425,1730561473840,600.0,0.000158,5]
[341183426,1730561474626,151.7,0.0001599,3]
[341183427,1730561474885,303.4,0.0001736,3]
[341183428,1730561476117,600.0,0.000159,5]
[341183429,1730561485491,455.11,0.0001599,3]
[341183431,1730561547516,795.68,0.0001599,3]
[341183432,1730561745742,403.0,0.00025,30]
[341183433,1730561884038,-175.99,0.00015342,2]
[341183434,1730561884062,-4009.97724549,0.000158,2]
[341183435,1730561884086,-250.0,0.00015899,2]
[341183436,1730561884108,-6275.83070321,0.000159,2]
[341183437,1730561884250,-621.399,0.00015938,2]
[341183438,1730561884275,-173.35116725,0.00015938,2]
[341183439,1730561884299,-340.96757148,0.00015938,2]
[341183440,1730561884322,-49288.90175986,0.00015938,2]
[341183441,1730561884344,-500.0,0.00015973,2]
[341183442,1730561884368,-499.04092897,0.00015973,2]
[341183443,1730561884391,-6343.08660636,0.00015995,2]
[341183444,1730561884417,-172.5125558,0.00015995,2]
[341183445,1730561884440,-2071348.94246158,0.00016,2]
[341183446,1730562014286,-4228.72440424,0.00015938,2]
[341183447,1730562014326,-233.44439235,0.0001599,2]
[341183448,1730562014366,-233.44439235,0.0001599,2]
[341183449,1730562014405,-233.44439235,0.0001599,2]
[341183450,1730562014444,-540.19070098,0.00015995,2]
[341183451,1730562014487,-55143.50560288,0.00015995,2]
[341183452,1730562014529,-194.94105961,0.00016,2]
[341183453,1730562014569,-2939192.30505524,0.00016,2]
[341183454,1730562040302,-456.02008576,0.00015938,2]
[341183455,1730562040344,-5799543.97991424,0.00016,2]
[341183740,1730562427728,201.71129486,0.00025001,120]
[341183741,1730562430136,-158.67,0.00015342,2]
[341183742,1730562430159,-154.12917225,0.00016,2]
[341183746,1730562557115,-39777.19391801,0.00016,2]
[341183747,1730562557137,-4399.9209228,0.00016073,2]
[341183748,1730562557158,-2534.6682643,0.00016084,2]
[341183749,1730562557179,-150.0,0.00016095,2]
[341183750,1730562557199,-184.9953407,0.00016138,2]
[341183751,1730562557218,-175.359,0.00016381,2]
[341183752,1730562557238,-200.0,0.0001736,2]
[341183753,1730562557259,-823.32,0.0001736,2]
[341183754,1730562557278,-150.0,0.00017507,2]
[341183755,1730562557301,-200.0,0.00017534,2]
[341183756,1730562557323,-200.0,0.00017709,2]
[341183757,1730562557347,-801.72,0.00017709,2]
[341183758,1730562557367,-200.0,0.00017886,2]
[341183759,1730562557387,-2850.0,0.0001892,2]
[341183760,1730562557407,-1672.0,0.000193,2]
[341183761,1730562557427,-999.9716,0.00019725,2]
[341183762,1730562557448,-1000.0,0.0002,2]
[341183763,1730562557469,-227.0247313,0.0002,2]
[341183764,1730562557489,-359.0,0.000205,2]
[341183765,1730562557510,-250.0,0.00021,2]
[341183766,1730562557532,-300.0,0.00023,2]
[341183767,1730562557555,-5430.54407821,0.0002475,2]
[341183768,1730562562124,-640.698412,0.00024733,2]
[341183769,1730562562147,-248.25989605,0.0002475,2]
[341183770,1730562562169,-1000.0,0.00025,2]
[341183771,1730562562191,-200.0,0.00025,2]
[341183772,1730562562212,-2000.0,0.00025,2]
[341183773,1730562562232,-200.0,0.0002525,2]
[341183774,1730562562254,-861.39,0.00026506,2]
[341183775,1730562562273,-162.87,0.00026894,2]
[341183776,1730562562292,-173.48,0.00026969,2]
[341183777,1730562562311,-5877.15,0.00027187,2]
[341183778,1730562562330,-1000.0,0.00027187,2]
[341183779,1730562562351,-865.85,0.00027243,2]
[341183780,1730562562370,-22510.24,0.00027283,2]
[341183781,1730562562390,-12324.02,0.00027303,2]
[341183782,1730562562409,-150.0,0.00027364,2]
[341183783,1730562562428,-985.52,0.00027397,10]
[341183784,1730562562448,-150.0,0.00027397,7]
[341183785,1730562562469,-406.51819195,0.00027397,10]
[341183786,1730562566094,-175.359,0.00027405,2]
[341183787,1730562566123,-1200.07,0.00027597,2]
[341183788,1730562566150,-865.85,0.0002768,2]
[341183789,1730562566178,-253.529638,0.00027745,2]
[341183790,1730562568159,-871.030362,0.00027745,2]
[341183791,1730562568182,-2751.0,0.0002801,2]
[341183792,1730562568204,-166.36,0.0002801,2]
[341183793,1730562568225,-250.0,0.00028011,2]
[341183794,1730562568376,-200.0,0.00028102,2]
[341183795,1730562568409,-865.85,0.00028118,2]
[341183796,1730562568431,-176.96,0.00028166,120]
[341183797,1730562568453,-162.87,0.00028238,2]
[341183798,1730562568474,-158.21,0.00028402,2]
[341183799,1730562568495,-346.6955197,0.00028424,2]
[341183800,1730562573129,-13181.3444803,0.00028424,2]
[341183801,1730562573149,-250.0,0.00028431,2]
[341183802,1730562573170,-865.85,0.00028556,2]
[341183803,1730562573190,-200.0,0.00028588,2]
[341183804,1730562573210,-861.39,0.0002877,2]
[341183805,1730562573236,-250.0,0.00028826,2]
[341183806,1730562573256,-184.42,0.00028867,2]
[341183807,1730562573279,-181.77,0.0002895,2]
[341183808,1730562573299,-23900.0,0.00028965,2]
[341183809,1730562573319,-556.8904997,0.00028993,2]
[341183821,1730562632456,-154.96,0.00015342,2]
[341183822,1730562632467,-150.0,0.00018121,2]
[341183823,1730562632477,-134.89724549,0.00028993,2]
[341183824,1730562632526,-1461.79376864,0.00028993,2]
[341183825,1730562632582,-403.30898587,0.00028993,2]
[341183826,1730562632592,-200.0,0.00028993,2]
[341183827,1730562632601,-308.9595003,0.00028993,2]
[341183828,1730562632611,-169.9,0.00029045,30]
[341183829,1730562632620,-1124.56,0.00029132,2]
[341183830,1730562632630,-1289.04654692,0.00029283,2]
[341183831,1730562632643,-550.434091,0.00029283,2]
[341183832,1730562632657,-160.51936208,0.00029283,2]
[341183833,1730562632668,-200.0,0.00029283,2]
[341183834,1730562632679,-865.85,0.00029431,2]
[341183835,1730562632690,-2000.0,0.00029576,2]
[341183836,1730562632699,-200.0,0.00029576,2]
[341183837,1730562632709,-162.87,0.00029583,2]
[341183838,1730562632720,-166.21,0.00029691,2]
[341183839,1730562632729,-151.23,0.00029853,2]
[341183840,1730562632738,-865.85,0.00029869,2]
[341183841,1730562632748,-167.7535,0.0003,2]
[341183842,1730562632757,-167.7535,0.0003,2]
[341183843,1730562632767,-151.0,0.0003,120]
[341183844,1730562632778,-813.81925,0.0003,2]
[341183845,1730562632789,-720.22717992,0.0003,2]
[341183846,1730562632804,-93.59207008,0.0003,2]
[341183847,1730562632813,-161.63,0.00030092,2]
[341183848,1730562632822,-161.63,0.00030107,2]
[341183849,1730562632832,-161.63,0.00030123,2]
[341183850,1730562632842,-161.63,0.00030139,2]
[341183852,1730562632851,-161.63,0.00030155,2]
[341183854,1730562632861,-161.63,0.00030171,2]
[341183856,1730562632872,-161.63,0.00030187,2]
[341183858,1730562632882,-161.63,0.00030202,2]
[341183860,1730562632891,-161.63,0.00030218,2]
[341183862,1730562632900,-161.63,0.00030234,2]
[341183864,1730562632909,-161.63,0.0003025,2]
[341183865,1730562632918,-161.63,0.00030266,2]
[341183867,1730562632927,-161.63,0.00030282,2]
[341183869,1730562632936,-161.63,0.00030297,2]
[341183871,1730562632945,-865.85,0.00030307,2]
[341183873,1730562632954,-161.63,0.00030313,2]
[341183875,1730562632963,-161.63,0.00030329,2]
[341183877,1730562632972,-161.63,0.00030345,2]
[341183879,1730562632981,-161.63,0.00030361,2]
[341183881,1730562632991,-161.63,0.00030377,2]
[341183883,1730562633000,-161.63,0.00030392,2]
[341183884,1730562633010,-1124.56,0.00030519,2]
[341183885,1730562633019,-158.67,0.00030548,2]
[341183886,1730562633028,-1000.0,0.00030586,2]
[341183887,1730562633038,-191.3,0.00030598,5]
[341183888,1730562633047,-166.36,0.00030811,2]
[341183889,1730562633055,-180.0,0.00030855,120]
[341183890,1730562633065,-166.21,0.00030916,2]
[341183891,1730562633074,-162.87,0.00030928,2]
[341183892,1730562633084,-861.39,0.00031034,2]
[341183893,1730562633093,-151.23,0.0003112,2]
[341183894,1730562633103,-3102.53138254,0.00031536,120]
[341183895,1730562633112,-1124.56,0.00031906,2]
[341183896,1730562633122,-166.21,0.00032141,2]
[341183897,1730562633131,-162.87,0.00032272,2]
[341183898,1730562633140,-151.23,0.00032387,2]
[341183899,1730562633150,-151.33,0.00032531,120]
[341183900,1730562633159,-150.0,0.00032584,2]
[341183901,1730562633169,-176.96,0.00032861,120]
[341183902,1730562633178,-500.0,0.00032876,2]
[341183903,1730562633187,-1124.56,0.00033294,2]
[341183904,1730562633197,-861.39,0.00033298,2]
[341183905,1730562633206,-166.21,0.00033366,2]
[341183906,1730562633215,-166.15,0.00033495,2]
[341183907,1730562633225,-166.36,0.00033612,2]
[341183908,1730562633234,-166.8,0.0003363,2]
[341183909,1730562633244,-151.23,0.00033654,2]
[341183910,1730562633253,-1000.0,0.00033984,2]
[341183911,1730562633263,-150.0,0.00034548,10]
[341183912,1730562633272,-166.21,0.00034591,2]
[341183913,1730562633282,-151.23,0.00034921,2]
[341183914,1730562633292,-861.39,0.00035562,2]
[341183915,1730562633303,-1000.0,0.00035616,2]
[341183916,1730562633315,-19310.31872738,0.00036123,3]
[341183917,1730562633325,-1250.0,0.00036125,2]
[341183918,1730562633335,-463.531,0.00036125,2]
[341183919,1730562633345,-558.0,0.00036125,2]
[341183920,1730562633355,-1985.0,0.00036125,2]
[341183921,1730562633366,-2904.0,0.00036125,2]
[341183922,1730562633376,-812.0,0.00036125,2]
[341183923,1730562633386,-151.23,0.00036188,2]
[341183924,1730562633397,-166.36,0.00036413,2]
[341183925,1730562633516,-151.33,0.00036598,120]
[341183926,1730562633526,-497.119,0.00036698,46]
[341183927,1730562633536,-291.32360781,0.00036773,2]
[341183928,1730562633545,-23079.0,0.00036787,2]
[341183929,1730562633557,-291.32360778,0.00036808,2]
[341183930,1730562633566,-753.52,0.00036833,10]
[341183931,1730562633576,-627.93,0.00036833,10]
[341183932,1730562633586,-200.52313134,0.00036842,15]
[341183933,1730562633596,-316.50858305,0.00036843,2]
[341183934,1730562633605,-291.32360778,0.00036843,2]
[341183935,1730562633615,-153.47360016,0.00036843,2]
[341183936,1730562633624,-100000.0,0.00036843,2]
[341183937,1730562633635,-201.91036086,0.00036873,5]
[341183938,1730562633645,-500.0,0.00036873,2]
[341183939,1730562633654,-220.11,0.0003689,2]
[341183940,1730562633664,-220.11,0.0003689,2]
[341183941,1730562633673,-220.11,0.0003689,2]
[341183942,1730562633683,-220.11,0.0003689,2]
[341183943,1730562633692,-37798.0772,0.000369,2]
[341183944,1730562633701,-245000.0,0.000369,2]
[341183945,1730562633711,-334.0,0.00036943,5]
[341183946,1730562633720,-241.68,0.00036986,2]
[341183947,1730562633729,-300.0,0.00036986,2]
[341183948,1730562633739,-220.11,0.0003699,2]
[341183949,1730562633748,-20000.0,0.00037,2]
[341183950,1730562633757,-19221.87923775,0.00037,2]
[341183951,1730562633767,-346.18214977,0.00037,2]
[341183952,1730562633776,-1013.0,0.000372,7]
[341183953,1730562633787,-1000.0,0.00037383,2]
[341183954,1730562633800,-400.0,0.000374,13]
[341183955,1730562633810,-162.005,0.0003741,3]
[341183956,1730562633819,-150.0,0.00037425,2]
[341183957,1730562633829,-5911.0,0.00037425,2]
[341183958,1730562633839,-1155.0,0.00037425,2]
[341183959,1730562633849,-155.843,0.00037425,2]
[341183960,1730562633858,-13590.0,0.00037425,2]
[341183961,1730562633867,-156.646,0.00037425,2]
[341183962,1730562633878,-4632.00689466,0.00037434,2]
[341183963,1730562633887,-3717.55845236,0.00037434,2]
[341183964,1730562633896,-976.05249723,0.00037434,12]
[341183965,1730562633907,-170.85,0.00037439,2]
[341183966,1730562633917,-900.0,0.000375,13]
[341183967,1730562633926,-257.51525418,0.000375,4]
[341183968,1730562633936,-3390.0253424,0.00037508,2]
[341183969,1730562633946,-5902.7785995,0.00037508,2]
[341183970,1730562633956,-867.0543859,0.00037508,2]
[341183971,1730562633966,-500.0,0.00037534,2]
[341183972,1730562633977,-500.0,0.00037534,2]
[341183973,1730562633987,-500.0,0.00037534,2]
[341183974,1730562633997,-500.0,0.00037534,2]
[341183975,1730562634006,-500.0,0.00037534,2]
[341183976,1730562634015,-500.0,0.00037534,2]
[341183977,1730562634025,-158.200134,0.00037534,7]
[341183978,1730562634034,-151.0,0.00037534,7]
[341183979,1730562634044,-514.10057902,0.00037534,2]
[341183980,1730562634053,-529.69135323,0.00037534,2]
[341183981,1730562634064,-505.49586249,0.00037534,2]
[341183982,1730562634073,-508.95727014,0.00037534,2]
[341183983,1730562634082,-499.78940233,0.00037534,2]
[341183984,1730562634094,-500.0,0.00037534,2]
[341183985,1730562634104,-500.0,0.00037534,2]
[341183986,1730562634113,-500.0,0.00037534,2]
[341183987,1730562634123,-512.69452363,0.00037534,2]
[341183988,1730562634133,-542.02139276,0.00037534,2]
[341183989,1730562634142,-510.59047531,0.00037534,2]
[341183990,1730562634151,-234.83137073,0.00037534,2]
[341183991,1730562634161,-509.68390863,0.00037534,2]
[341183992,1730562634170,-517.55839076,0.00037534,2]
[341183993,1730562634180,-527.2453572,0.00037534,2]
[341183994,1730562634189,-523.30795647,0.00037534,2]
[341183995,1730562634199,-500.0,0.00037534,2]
[341183996,1730562634208,-500.0,0.00037534,2]
[341183997,1730562634218,-500.0,0.00037534,2]
[341183998,1730562634228,-642.51459655,0.00037534,2]
[341183999,1730562634237,-521.65471523,0.00037534,2]
[341184000,1730562634247,-505.89424594,0.00037534,2]
[341184001,1730562634256,-500.0,0.00037534,2]
[341184002,1730562634266,-548.9475383,0.00037534,2]
[341184003,1730562634275,-527.46808901,0.00037534,2]
[341184004,1730562634285,-500.0,0.00037534,2]
[341184005,1730562634294,-543.03803554,0.00037534,2]
[341184006,1730562634305,-151.0,0.00037534,7]
[341184007,1730562634315,-151.0,0.00037534,7]
[341184008,1730562634325,-151.0,0.00037534,7]
[341184009,1730562634335,-151.0,0.00037534,7]
[341184010,1730562634344,-151.0,0.00037534,7]
[341184011,1730562634353,-522.76118288,0.00037534,2]
[341184012,1730562634363,-151.0,0.00037534,7]
[341184013,1730562634374,-556.71672936,0.00037534,2]
[341184014,1730562634384,-507.60020582,0.00037534,2]
[341184015,1730562634393,-509.1836757,0.00037534,2]
[341184016,1730562634403,-506.44096577,0.00037534,2]
[341184017,1730562634412,-509.03368078,0.00037534,2]
[341184018,1730562634422,-544.04015464,0.00037534,2]
[341184019,1730562634431,-521.27434318,0.00037534,2]
[341184020,1730562634440,-511.74556378,0.00037534,2]
[341184021,1730562634450,-521.01675943,0.00037534,2]
[341184022,1730562634459,-507.57396279,0.00037534,2]
[341184023,1730562634468,-508.38153338,0.00037534,2]
[341184024,1730562634477,-1061.39730266,0.00037534,10]
[341184025,1730562634487,-518.60123298,0.00037534,2]
[341184026,1730562634496,-344.86213273,0.00037534,2]
[341184027,1730562634505,-500.0,0.00037534,2]
[341184028,1730562634515,-500.0,0.00037534,2]
[341184029,1730562634524,-526.13530873,0.00037534,2]
[341184030,1730562634533,-489.37645555,0.00037534,2]
[341184031,1730562634542,-500.0,0.00037534,2]
[341184032,1730562634551,-500.0,0.00037534,2]
[341184033,1730562634562,-500.0,0.00037534,2]
[341184034,1730562634571,-535.20216028,0.00037534,2]
[341184035,1730562634580,-500.0,0.00037534,2]
[341184036,1730562634589,-500.0,0.00037534,2]
[341184037,1730562634598,-500.0,0.00037534,2]
[341184038,1730562634608,-500.0,0.00037534,2]
[341184039,1730562634618,-500.0,0.00037534,2]
[341184040,1730562634628,-500.0,0.00037534,2]
[341184041,1730562634637,-500.0,0.00037534,2]
[341184042,1730562634647,-500.0,0.00037534,2]
[341184043,1730562634656,-500.0,0.00037534,2]
[341184044,1730562634665,-500.0,0.00037534,2]
[341184045,1730562634675,-500.0,0.00037534,2]
[341184046,1730562634684,-500.0,0.00037534,2]
[341184047,1730562634693,-1008.71556785,0.00037534,2]
[341184048,1730562634702,-500.0,0.00037534,2]
[341184049,1730562634711,-579.23721047,0.00037534,2]
[341184050,1730562634721,-451.19065246,0.00037534,2]
[341184051,1730562634730,-500.0,0.00037534,2]
[341184052,1730562634740,-500.0,0.00037534,2]
[341184053,1730562634749,-500.0,0.00037534,2]
[341184054,1730562634759,-500.0,0.00037534,2]
[341184055,1730562634768,-500.0,0.00037534,2]
[341184056,1730562634778,-500.0,0.00037534,2]
[341184057,1730562634787,-500.0,0.00037534,2]
[341184058,1730562634800,-500.0,0.00037534,2]
[341184059,1730562634810,-500.0,0.00037534,2]
[341184060,1730562634819,-500.0,0.00037534,2]
[341184061,1730562634828,-523.55060239,0.00037534,2]
[341184062,1730562634839,-500.0,0.00037534,2]
[341184063,1730562634848,-500.0,0.00037534,2]
[341184064,1730562634858,-500.0,0.00037534,2]
[341184065,1730562634867,-558.43014789,0.00037534,2]
[341184066,1730562634878,-500.0,0.00037534,2]
[341184067,1730562634889,-309.96555099,0.00037534,2]
[341184068,1730562634899,-500.0,0.00037534,2]
[341184069,1730562634908,-517.5063904,0.00037534,2]
[341184070,1730562634918,-526.15213869,0.00037534,2]
[341184071,1730562634927,-509.84979459,0.00037534,2]
[341184072,1730562634937,-500.0,0.00037534,2]
[341184073,1730562634946,-500.0,0.00037534,2]
[341184074,1730562634955,-500.0,0.00037534,2]
[341184075,1730562634965,-500.0,0.00037534,2]
[341184076,1730562634974,-461.74,0.00037534,2]
[341184077,1730562634984,-584.85591579,0.00037534,2]
[341184078,1730562634996,-500.0,0.00037534,2]
[341184079,1730562635005,-233.06081396,0.00037534,2]
[341184080,1730562635015,-560.00149076,0.00037534,2]
[341184081,1730562635024,-318.30886403,0.00037534,2]
[341184082,1730562635033,-517.40690316,0.00037534,2]
[341184083,1730562635043,-500.0,0.00037534,2]
[341184084,1730562635052,-511.11921836,0.00037534,2]
[341184085,1730562635062,-518.30963726,0.00037534,2]
[341184086,1730562635071,-151.0,0.00037534,7]
[341184087,1730562635080,-295.961347,0.00037534,7]
[341184088,1730562635089,-500.0,0.00037534,2]
[341184089,1730562635099,-500.0,0.00037534,2]
[341184090,1730562635108,-151.0,0.00037534,7]
[341184091,1730562635118,-500.0,0.00037534,2]
[341184092,1730562635128,-506.36846555,0.00037534,2]
[341184093,1730562635139,-507.88813396,0.00037534,2]
[341184094,1730562635148,-500.0,0.00037534,2]
[341184095,1730562635159,-500.0,0.00037534,2]
[341184096,1730562635169,-500.0,0.00037534,2]
[341184097,1730562635179,-275.4598354,0.00037534,2]
[341184098,1730562635190,-500.0,0.00037534,2]
[341184099,1730562635200,-500.0,0.00037534,2]
[341184100,1730562635212,-524.9755924,0.00037534,2]
[341184101,1730562635221,-534.40615701,0.00037534,2]
[341184102,1730562635231,-500.0,0.00037534,2]
[341184103,1730562635240,-500.0,0.00037534,2]
[341184104,1730562635252,-535.66630332,0.00037534,2]
[341184105,1730562635263,-500.0,0.00037534,2]
[341184106,1730562635273,-512.48025674,0.00037534,2]
[341184107,1730562635283,-534.16711788,0.00037534,2]
[341184108,1730562635295,-500.0,0.00037534,2]